[Event "1000GM Winter IM Norm-2 2024"]
[Site "Sunnyvale/"]
[Date "2024.01.06"]
[Round "8.3"]
[White "Goktepe, Derin"]
[Black "Arenas, David"]
[Result "1/2-1/2"]
[ECO "D24"]
[WhiteElo "2187"]
[BlackElo "2406"]
[Annotator "RC"]
[PlyCount "46"]
[EventDate "2023.12.14"]
[EventType "schev"]
[EventCountry "USA"]
[SourceTitle "playchess.com"]
[Source "ChessBase"]
[SourceQuality "1"]
[TimeControl "5400+30"]

1. d4 {[%emt 0:00:04]} Nf6 {[%emt 0:11:14]} 2. c4 {[%emt 0:00:15]} e6 {[%emt 0:00:39]} 3. Nf3 {[%emt 0:00:18]} d5 {[%emt 0:00:32]} 4. Nc3 {[%emt 0:00:17]} dxc4 {[%emt 0:02:09]} 5. e4 {[%emt 0:00:36]} b5 {[%emt 0:00:09]} 6. Nxb5 {[%emt 0:00:26]} Nxe4 {[%emt 0:01:27]} 7. Qa4 {[%emt 0:00:41]} c6 {[%emt 0:03:14]} 8. Nc3 {[%emt 0:00:57]} Nd6 {[%emt 1:15:06]} 9. Bf4 {[%emt 0:06:53]} Be7 {[%emt 0:00:00]} 10. Bxd6 {[%emt 0:04:10]} Qxd6 {[%emt 0:00:00]} 11. Bxc4 {[%emt 0:03:14]} O-O {[%emt 0:00:00]} 12. O-O {[%emt 0:05:21]} Nd7 {[%emt 0:00:00]} 13. Ne4 {[%emt 0:11:59]} Qf4 {[%emt 0:00:00]} 14. Qc2 {[%emt 0:08:13]} a5 {[%emt 0:00:00]} 15. Bd3 {[%emt 0:04:21]} Ba6 {[%emt 0:00:00]} 16. Bxa6 {[%emt 0:03:53]} Rxa6 {[%emt 0:00:00]} 17. b3 {[%emt 0:05:51]} h6 {[%emt 0:00:00]} 18. Qd3 {[%emt 0:03:04]} Rfa8 {[%emt 0:00:00]} 19. Rac1 {[%emt 0:01:04]} a4 {[%emt 0:00:00]} 20. bxa4 {[%emt 0:02:16]} Rxa4 {[%emt 0:00:00]} 21. Rxc6 {[%emt 0:37:07]} Rxa2 {[%emt 0:06:30]} 22. g3 {[%emt 0:00:30]} Qb8 {[%emt 0:00:30]} 23. Rfc1 {[%emt 0:00:30]} Nf6 {[%emt 0:00:30]} 1/2-1/2

[Event "1000GM Winter IM Norm-2 2024"]
[Site "Sunnyvale/"]
[Date "2024.01.06"]
[Round "8.4"]
[White "Atwell, Rose"]
[Black "Mede, Istvan"]
[Result "1/2-1/2"]
[ECO "B13"]
[WhiteElo "2104"]
[BlackElo "2187"]
[Annotator "RC"]
[PlyCount "102"]
[EventDate "2023.12.14"]
[EventType "schev"]
[EventCountry "USA"]
[SourceTitle "playchess.com"]
[Source "ChessBase"]
[SourceQuality "1"]
[TimeControl "5400+30"]

1. e4 {[%emt 0:00:01]} c6 {[%emt 0:02:11]} 2. d4 {[%emt 0:00:07]} d5 {[%emt 0:00:05]} 3. exd5 {[%emt 0:00:05]} cxd5 {[%emt 0:00:03]} 4. Bd3 {[%emt 0:00:09]} Nf6 {[%emt 0:00:50]} 5. h3 {[%emt 0:00:12]} Nc6 {[%emt 0:00:45]} 6. c3 {[%emt 0:00:17]} g6 {[%emt 0:00:06]} 7. Nf3 {[%emt 0:00:56]} Bg7 {[%emt 0:00:19]} 8. O-O {[%emt 0:01:22]} O-O {[%emt 0:00:25]} 9. Re1 {[%emt 0:04:04]} Bf5 {[%emt 0:00:11]} 10. Bf1 {[%emt 0:05:13]} Qc7 {[%emt 0:00:46]} 11. Be3 {[%emt 0:05:25]} Rfe8 {[%emt 0:01:39]} 12. Nbd2 {[%emt 0:05:55]} a6 {[%emt 0:02:26]} 13. Nb3 {[%emt 0:10:21]} Rad8 {[%emt 0:02:21]} 14. Qc1 {[%emt 0:03:40]} Ne4 {[%emt 0:02:34]} 15. Bf4 {[%emt 0:05:15]} Qb6 {[%emt 0:00:54]} 16. Qe3 {[%emt 0:04:04]} Nd6 {[%emt 0:05:25]} 17. g4 {[%emt 0:04:18]} Bc8 {[%emt 0:01:53]} 18. Nfd2 {[%emt 0:04:21]} Na5 {[%emt 0:08:16]} 19. Nxa5 {[%emt 0:03:59]} Qxa5 {[%emt 0:00:04]} 20. Bg2 {[%emt 0:00:21]} e6 {[%emt 0:10:05]} 21. Bf1 {[%emt 0:03:25]} Qb6 {[%emt 0:01:39]} 22. Qg3 {[%emt 0:05:13]} Qc6 {[%emt 0:02:08]} 23. Bd3 {[%emt 0:00:51]} b6 {[%emt 0:04:41]} 24. Re2 {[%emt 0:01:19]} Bb7 {[%emt 0:00:26]} 25. Rae1 {[%emt 0:01:29]} Nc4 {[%emt 0:06:45]} 26. Nxc4 {[%emt 0:02:37]} dxc4 {[%emt 0:01:58]} 27. Be4 {[%emt 0:00:06]} Qc8 {[%emt 0:00:36]} 28. Be5 {[%emt 0:03:54]} Bxe4 {[%emt 0:03:18]} 29. Bxg7 {[%emt 0:01:30]} Kxg7 {[%emt 0:00:37]} 30. Qe5+ {[%emt 0:00:17]} Kg8 {[%emt 0:00:24]} 31. Rxe4 {[%emt 0:00:23]} Rf8 {[%emt 0:01:05]} 32. Qg5 {[%emt 0:02:50]} Rd5 {[%emt 0:00:38]} 33. Qh6 {[%emt 0:00:19]} Qd8 {[%emt 0:00:53]} 34. Re5 {[%emt 0:00:36]} Rxe5 {[%emt 0:01:29]} 35. Rxe5 {[%emt 0:00:40]} Qf6 {[%emt 0:00:59]} 36. Kg2 {[%emt 0:00:58]} Rd8 {[%emt 0:00:48]} 37. Qe3 {[%emt 0:01:21]} Qe7 {[%emt 0:03:24]} 38. Qe4 {[%emt 0:01:02]} Qd7 {[%emt 0:02:38]} 39. g5 {[%emt 0:00:49]} Kg7 {[%emt 0:06:51]} 40. h4 {[%emt 0:01:21]} Kg8 {[%emt 0:09:58]} 41. Qf3 {[%emt 0:01:36]} Qa4 {[%emt 0:01:30]} 42. a3 {[%emt 0:02:14]} Qc2 {[%emt 0:00:54]} 43. Qe2 {[%emt 0:02:57]} Qxe2 {[%emt 0:01:51]} 44. Rxe2 {[%emt 0:00:03]} Rd5 {[%emt 0:00:02]} 45. Re5 {[%emt 0:00:28]} Kf8 {[%emt 0:01:17]} 46. Kf3 {[%emt 0:02:29]} Ke7 {[%emt 0:00:10]} 47. Rxd5 {[%emt 0:03:00]} exd5 {[%emt 0:00:04]} 48. Kf4 {[%emt 0:00:35]} Kd6 {[%emt 0:01:05]} 49. f3 {[%emt 0:00:50]} b5 {[%emt 0:00:16]} 50. Kg4 {[%emt 0:00:24]} Ke6 {[%emt 0:00:12]} 51. Kf4 {[%emt 0:01:23]} Kd6 {[%emt 0:16:06]} 1/2-1/2

[Event "1000GM Winter IM Norm-2 2024"]
[Site "Sunnyvale/"]
[Date "2024.01.06"]
[Round "8.5"]
[White "Sivakumar, Shaaketh"]
[Black "Stopa, Jacek"]
[Result "1/2-1/2"]
[ECO "B13"]
[WhiteElo "2364"]
[BlackElo "2344"]
[Annotator "ChessBase"]
[PlyCount "22"]
[EventDate "2023.12.14"]
[EventType "schev"]
[EventCountry "USA"]
[SourceTitle "playchess.com"]
[Source "ChessBase"]
[SourceQuality "1"]
[TimeControl "5400+30"]

1. Nf3 {[%emt 0:00:02]} d5 {[%emt 0:01:54]} 2. d4 {[%emt 0:00:22]} Nf6 {[%emt 0:01:20]} 3. Bf4 {[%emt 0:00:36]} c5 {[%emt 0:02:24]} 4. e3 {[%emt 0:00:09]} cxd4 {[%emt 0:00:07]} 5. exd4 {[%emt 0:00:09]} Nc6 {[%emt 0:00:46]} 6. c3 {[%emt 0:00:09]} Nh5 {[%emt 0:02:38]} 7. Be3 {[%emt 0:01:29]} Nf6 {[%emt 0:00:35]} 8. Bf4 {[%emt 0:00:32]} Nh5 {[%emt 0:00:06]} 9. Be3 {[%emt 0:00:03]} Nf6 {[%emt 0:00:05]} 10. Bf4 {[%emt 0:00:05]} Nh5 {[%emt 0:00:09]} 11. Be3 {[%emt 0:00:02]} Nf6 {[%emt 1:25:56]} 1/2-1/2

[Event "1000GM Winter IM Norm-2 2024"]
[Site "Sunnyvale/"]
[Date "2024.01.06"]
[Round "8.6"]
[White "Calderin Gonzalez, Roberto"]
[Black "Yao, Hanchi"]
[Result "1/2-1/2"]
[ECO "A11"]
[WhiteElo "2413"]
[BlackElo "1998"]
[Annotator "RC"]
[PlyCount "48"]
[EventDate "2023.12.14"]
[EventType "schev"]
[EventCountry "USA"]
[SourceTitle "playchess.com"]
[Source "ChessBase"]
[SourceQuality "1"]
[TimeControl "5400+30"]

1. Nf3 {[%emt 0:00:30]} d5 {[%emt 0:00:36]} 2. c4 {[%emt 0:00:06]} c6 {[%emt 0:00:16]} 3. e3 {[%emt 0:00:35]} Nf6 {[%emt 0:00:11]} 4. Qc2 {[%emt 0:00:34]} e6 {[%emt 0:02:17]} 5. b3 {[%emt 0:00:09]} Bd6 {[%emt 0:01:01]} 6. Bb2 {[%emt 0:00:10]} Nbd7 {[%emt 0:00:20]} 7. Nc3 {[%emt 0:00:07]} O-O {[%emt 0:00:26]} 8. g4 {[%emt 0:00:50]} Nxg4 {[%emt 0:04:54]} 9. Rg1 {[%emt 0:00:17]} Nde5 {[%emt 0:02:33]} 10. Nxe5 {[%emt 0:00:29]} Nxe5 {[%emt 0:00:14]} 11. O-O-O {[%emt 0:00:34]} b6 {[%emt 0:06:19]} 12. f4 {[%emt 0:01:43]} Ng6 {[%emt 0:00:12]} 13. h4 {[%emt 0:01:08]} Qxh4 {[%emt 0:02:36]} 14. Be2 {[%emt 0:03:36]} Qe7 {[%emt 0:02:42]} 15. cxd5 {[%emt 0:00:14]} cxd5 {[%emt 0:01:53]} 16. f5 {[%emt 0:00:21]} exf5 {[%emt 0:02:31]} 17. Nxd5 {[%emt 0:00:26]} Qe4 {[%emt 0:03:27]} 18. Qc3 {[%emt 0:00:08]} Be5 {[%emt 0:16:45]} 19. Ne7+ {[%emt 0:00:11]} Nxe7 {[%emt 0:00:20]} 20. Qxe5 {[%emt 0:00:06]} Qxe5 {[%emt 0:00:59]} 21. Bxe5 {[%emt 0:00:03]} Ng6 {[%emt 0:02:25]} 22. Bc3 {[%emt 0:00:01]} Be6 {[%emt 0:03:18]} 23. Rdf1 {[%emt 0:00:20]} Rfd8 {[%emt 0:01:36]} 24. Rf2 {[%emt 0:01:13]} Rac8 {[%emt 0:02:10]} 1/2-1/2

[Event "1000GM Winter IM Norm-2 2024"]
[Site "Sunnyvale/"]
[Date "2024.01.06"]
[Round "8.7"]
[White "Zuluaga Mancilla, Cesar"]
[Black "Bhatta, Rohit"]
[Result "1-0"]
[ECO "D02"]
[WhiteElo "2251"]
[BlackElo "1867"]
[Annotator "RC"]
[PlyCount "171"]
[EventDate "2023.12.14"]
[EventType "schev"]
[EventCountry "USA"]
[SourceTitle "playchess.com"]
[Source "ChessBase"]
[SourceQuality "1"]
[TimeControl "5400+30"]

1. d4 {[%emt 0:06:50]} Nf6 {[%emt 0:00:10]} 2. Nf3 {[%emt 0:00:09]} d5 {[%emt 0:00:10]} 3. Bf4 {[%emt 0:00:30]} c5 {[%emt 0:00:22]} 4. c3 {[%emt 0:00:05]} Qb6 {[%emt 0:00:18]} 5. Qb3 {[%emt 0:00:11]} Nc6 {[%emt 0:00:30]} 6. dxc5 {[%emt 0:02:26]} Qxc5 {[%emt 0:00:07]} 7. e3 {[%emt 0:00:08]} e6 {[%emt 0:02:47]} 8. Nbd2 {[%emt 0:01:05]} Bd6 {[%emt 0:01:19]} 9. Bg3 {[%emt 0:00:17]} a6 {[%emt 0:03:12]} 10. Qa4 {[%emt 0:02:13]} Bxg3 {[%emt 0:03:59]} 11. hxg3 {[%emt 0:00:07]} Bd7 {[%emt 0:03:42]} 12. Qf4 {[%emt 0:03:58]} Rc8 {[%emt 0:03:52]} 13. g4 {[%emt 0:01:55]} Qb6 {[%emt 0:02:01]} 14. Rb1 {[%emt 0:01:25]} Qc7 {[%emt 0:01:23]} 15. g5 {[%emt 0:02:30]} Qxf4 {[%emt 0:01:06]} 16. exf4 {[%emt 0:00:02]} Ng8 {[%emt 0:00:26]} 17. Bd3 {[%emt 0:00:18]} g6 {[%emt 0:02:10]} 18. Nb3 {[%emt 0:00:43]} Kf8 {[%emt 0:11:23]} 19. Kd2 {[%emt 0:00:31]} Kg7 {[%emt 0:01:48]} 20. Rh4 {[%emt 0:04:24]} Rd8 {[%emt 0:07:15]} 21. Re1 {[%emt 0:00:38]} h5 {[%emt 0:01:51]} 22. Rhh1 {[%emt 0:01:18]} Nge7 {[%emt 0:03:42]} 23. g3 {[%emt 0:00:02]} Bc8 {[%emt 0:01:39]} 24. Rc1 {[%emt 0:08:04]} b6 {[%emt 0:01:11]} 25. Nbd4 {[%emt 0:00:33]} Bb7 {[%emt 0:01:05]} 26. b4 {[%emt 0:01:44]} Rc8 {[%emt 0:11:17]} 27. Nc2 {[%emt 0:02:15]} d4 {[%emt 0:08:59]} 28. cxd4 {[%emt 0:05:15]} Nxb4 {[%emt 0:01:08]} 29. Nxb4 {[%emt 0:00:06]} Bxf3 {[%emt 0:00:36]} 30. Bxa6 {[%emt 0:02:47]} Ra8 {[%emt 0:07:09]} 31. Rhe1 {[%emt 0:01:41]} Nd5 {[%emt 0:01:32]} 32. Nxd5 {[%emt 0:03:07]} Bxd5 {[%emt 0:00:14]} 33. Bc4 {[%emt 0:00:04]} Bxc4 {[%emt 0:00:12]} 34. Rxc4 {[%emt 0:00:06]} Rxa2+ {[%emt 0:00:08]} 35. Rc2 {[%emt 0:01:16]} Ra4 {[%emt 0:01:50]} 36. Ke3 {[%emt 0:00:04]} Rd8 {[%emt 0:00:51]} 37. Rd2 {[%emt 0:00:31]} Rd5 {[%emt 0:02:01]} 38. Rb1 {[%emt 0:00:25]} b5 {[%emt 0:00:17]} 39. Rb3 {[%emt 0:00:40]} Rc4 {[%emt 0:01:03]} 40. Ra3 {[%emt 0:00:14]} Rd8 {[%emt 0:02:01]} 41. Ra7 {[%emt 0:02:00]} Kf8 {[%emt 0:04:59]} 42. Rb7 {[%emt 0:01:14]} Ke8 {[%emt 0:05:56]} 43. Rxb5 {[%emt 0:02:01]} Rc3+ {[%emt 0:00:16]} 44. Ke4 {[%emt 0:00:39]} Rd7 {[%emt 0:01:20]} 45. Ke5 {[%emt 0:03:54]} Ke7 {[%emt 0:00:19]} 46. d5 {[%emt 0:00:57]} exd5 {[%emt 0:00:26]} 47. Rbxd5 {[%emt 0:02:54]} Rxd5+ {[%emt 0:00:25]} 48. Kxd5 {[%emt 0:00:07]} Rc7 {[%emt 0:01:41]} 49. Re2+ {[%emt 0:00:18]} Kf8 {[%emt 0:00:15]} 50. Ra2 {[%emt 0:05:36]} Rb7 {[%emt 0:00:54]} 51. Rc2 {[%emt 0:01:27]} Kg7 {[%emt 0:00:27]} 52. Ke4 {[%emt 0:00:11]} Rb4+ {[%emt 0:00:13]} 53. Kd3 {[%emt 0:00:13]} h4 {[%emt 0:01:00]} 54. Ke2 {[%emt 0:02:38]} hxg3 {[%emt 0:00:17]} 55. fxg3 {[%emt 0:00:02]} Rb6 {[%emt 0:01:31]} 56. Kf3 {[%emt 0:00:31]} Rb1 {[%emt 0:00:37]} 57. Rc5 {[%emt 0:00:23]} Rb3+ {[%emt 0:00:36]} 58. Kg2 {[%emt 0:01:04]} Rb2+ {[%emt 0:00:08]} 59. Kh3 {[%emt 0:00:10]} Rf2 {[%emt 0:00:57]} 60. Rc6 {[%emt 0:00:16]} Kg8 {[%emt 0:00:14]} 61. Rf6 {[%emt 0:00:08]} Kg7 {[%emt 0:00:19]} 62. Rc6 {[%emt 0:02:49]} Rf1 {[%emt 0:00:40]} 63. Rc4 {[%emt 0:00:34]} Ra1 {[%emt 0:00:44]} 64. g4 {[%emt 0:00:29]} Ra3+ {[%emt 0:00:16]} 65. Kg2 {[%emt 0:00:23]} Ra7 {[%emt 0:00:50]} 66. f5 {[%emt 0:01:31]} gxf5 {[%emt 0:00:17]} 67. gxf5 {[%emt 0:00:06]} Ra5 {[%emt 0:00:24]} 68. Rf4 {[%emt 0:00:16]} Ra3 {[%emt 0:00:18]} 69. Rf3 {[%emt 0:00:36]} Ra4 {[%emt 0:00:30]} 70. Kg3 {[%emt 0:00:01]} Rb4 {[%emt 0:00:21]} 71. Rf4 {[%emt 0:00:12]} Rb1 {[%emt 0:00:26]} 72. Rf2 {[%emt 0:03:07]} Rb4 {[%emt 0:00:06]} 73. Kf3 {[%emt 0:00:06]} Ra4 {[%emt 0:00:19]} 74. Re2 {[%emt 0:00:15]} Rb4 {[%emt 0:00:22]} 75. Re7 {[%emt 0:00:18]} Kf8 {[%emt 0:01:27]} 76. Re4 {[%emt 0:00:34]} Rb5 {[%emt 0:00:28]} 77. Kf4 {[%emt 0:00:14]} Kg7 {[%emt 0:00:36]} 78. Re7 {[%emt 0:00:41]} Kf8 {[%emt 0:00:20]} 79. Rd7 {[%emt 0:00:07]} Kg8 {[%emt 0:01:22]} 80. Ke4 {[%emt 0:04:04]} Ra5 {[%emt 0:00:13]} 81. Rd5 {[%emt 0:00:11]} Ra6 {[%emt 0:00:44]} 82. Ke5 {[%emt 0:00:14]} Rb6 {[%emt 0:00:28]} 83. Rd6 {[%emt 0:00:23]} Rb1 {[%emt 0:00:20]} 84. Kf6 {[%emt 0:00:43]} Rf1 {[%emt 0:00:11]} 85. Rd8+ {[%emt 0:00:21]} Kh7 {[%emt 0:00:16]} 86. Rf8 {[%emt 0:00:43]} 1-0

[Event "1000GM Winter IM Norm-2 2024"]
[Site "Sunnyvale/"]
[Date "2024.01.06"]
[Round "8.8"]
[White "Hajnal, Zoltan"]
[Black "Stevens, Adam B"]
[Result "1-0"]
[ECO "C07"]
[WhiteElo "2383"]
[BlackElo "1878"]
[Annotator "RC"]
[PlyCount "101"]
[EventDate "2023.12.14"]
[EventType "schev"]
[EventCountry "USA"]
[SourceTitle "playchess.com"]
[Source "ChessBase"]
[SourceQuality "1"]
[TimeControl "5400+30"]

1. e4 {[%emt 0:03:44]} e6 {[%emt 0:00:04]} 2. d4 {[%emt 0:00:04]} d5 {[%emt 0:00:04]} 3. Nd2 {[%emt 0:00:09]} c5 {[%emt 0:00:53]} 4. exd5 {[%emt 0:00:26]} Qxd5 {[%emt 0:04:17]} 5. dxc5 {[%emt 0:00:17]} Bxc5 {[%emt 0:02:55]} 6. Ngf3 {[%emt 0:00:24]} Nf6 {[%emt 0:01:24]} 7. Bc4 {[%emt 0:00:26]} Qd6 {[%emt 0:02:58]} 8. Qe2 {[%emt 0:00:57]} O-O {[%emt 0:04:04]} 9. Ng5 {[%emt 0:03:12]} Qc7 {[%emt 0:08:20]} 10. Nde4 {[%emt 0:01:37]} Be7 {[%emt 0:01:49]} 11. Bd3 {[%emt 0:04:49]} Nbd7 {[%emt 1:09:12]} 12. Bd2 {[%emt 0:01:30]} b6 {[%emt 0:00:00]} 13. Nxf6+ {[%emt 0:05:41]} Nxf6 {[%emt 0:00:00]} 14. Bc3 {[%emt 0:05:44]} g6 {[%emt 0:00:00]} 15. h4 {[%emt 0:04:12]} Nd5 {[%emt 0:00:00]} 16. Be5 {[%emt 0:03:17]} Bd6 {[%emt 0:00:00]} 17. Bxd6 {[%emt 0:16:25]} Qxd6 {[%emt 0:00:00]} 18. O-O-O {[%emt 0:00:15]} h5 {[%emt 0:00:00]} 19. g3 {[%emt 0:02:58]} Qc7 {[%emt 0:00:00]} 20. Rhe1 {[%emt 0:07:40]} Bd7 {[%emt 0:00:00]} 21. Kb1 {[%emt 0:09:52]} Nf6 {[%emt 0:00:00]} 22. f3 {[%emt 0:07:33]} Qxg3 {[%emt 0:00:00]} 23. Rg1 {[%emt 0:06:13]} Qf4 {[%emt 0:00:00]} 24. Bxg6 {[%emt 0:01:47]} fxg6 {[%emt 0:00:00]} 25. Rxd7 {[%emt 0:00:08]} Nxd7 {[%emt 0:00:00]} 26. Qxe6+ {[%emt 0:00:31]} Rf7 {[%emt 0:00:00]} 27. Qxg6+ {[%emt 0:08:56]} Rg7 {[%emt 0:00:00]} 28. Ne6 {[%emt 0:00:18]} Rxg6 {[%emt 0:00:00]} 29. Rxg6+ {[%emt 0:00:12]} Kh7 {[%emt 0:00:00]} 30. Nxf4 {[%emt 0:00:03]} Rf8 {[%emt 0:00:00]} 31. Rd6 {[%emt 0:00:02]} Rxf4 {[%emt 0:00:00]} 32. Rxd7+ {[%emt 0:00:05]} Kg6 {[%emt 0:00:00]} 33. Rxa7 {[%emt 0:00:02]} Rxh4 {[%emt 0:00:00]} 34. a4 {[%emt 0:01:07]} Rh1+ {[%emt 0:00:00]} 35. Ka2 {[%emt 0:00:26]} h4 {[%emt 0:00:00]} 36. Rb7 {[%emt 0:00:10]} Rg1 {[%emt 0:00:00]} 37. Rxb6+ {[%emt 0:00:05]} Kh5 {[%emt 0:00:00]} 38. Rb8 {[%emt 0:01:28]} Rg6 {[%emt 0:00:00]} 39. Rd8 {[%emt 0:00:20]} h3 {[%emt 0:00:00]} 40. Rd1 {[%emt 0:00:08]} Kh4 {[%emt 0:00:00]} 41. Rh1 {[%emt 0:00:21]} Ra6 {[%emt 0:00:00]} 42. Ka3 {[%emt 0:00:19]} Kg3 {[%emt 0:00:00]} 43. b4 {[%emt 0:00:15]} Kg2 {[%emt 0:00:00]} 44. Rxh3 {[%emt 0:00:07]} Kxh3 {[%emt 0:00:00]} 45. b5 {[%emt 0:00:08]} Ra8 {[%emt 0:00:00]} 46. Kb4 {[%emt 0:00:11]} Kg3 {[%emt 0:00:00]} 47. b6 {[%emt 0:00:08]} Kf4 {[%emt 0:00:00]} 48. Kb5 {[%emt 0:00:20]} Ke5 {[%emt 0:00:00]} 49. b7 {[%emt 0:00:05]} Rb8 {[%emt 0:00:00]} 50. Kb6 {[%emt 0:00:05]} Kd6 {[%emt 0:00:00]} 51. a5 {[%emt 0:00:00]} 1-0

[Event "1000GM Winter IM Norm-2 2024"]
[Site "Sunnyvale/"]
[Date "2024.01.06"]
[Round "8.9"]
[White "Rodi, Luis Ernesto"]
[Black "Sivakumar, Shaashwath"]
[Result "0-1"]
[ECO "B90"]
[WhiteElo "2196"]
[BlackElo "2205"]
[Annotator "RC"]
[PlyCount "66"]
[EventDate "2023.12.14"]
[EventType "schev"]
[EventCountry "USA"]
[SourceTitle "playchess.com"]
[Source "ChessBase"]
[SourceQuality "1"]
[TimeControl "5400+30"]

1. e4 {[%emt 0:10:28]} c5 {[%emt 0:00:05]} 2. Nf3 {[%emt 0:00:05]} d6 {[%emt 0:00:03]} 3. d4 {[%emt 0:00:05]} cxd4 {[%emt 0:00:04]} 4. Nxd4 {[%emt 0:00:04]} Nf6 {[%emt 0:00:03]} 5. Nc3 {[%emt 0:00:05]} a6 {[%emt 0:00:03]} 6. Nb3 {[%emt 0:00:06]} e6 {[%emt 0:00:08]} 7. a4 {[%emt 0:00:05]} b6 {[%emt 0:00:11]} 8. g4 {[%emt 0:00:06]} Bb7 {[%emt 0:00:27]} 9. Bg2 {[%emt 0:00:05]} Be7 {[%emt 0:01:26]} 10. Be3 {[%emt 0:00:08]} Nc6 {[%emt 0:00:13]} 11. g5 {[%emt 0:01:17]} Nd7 {[%emt 0:00:07]} 12. f4 {[%emt 0:00:07]} Qc7 {[%emt 0:02:36]} 13. Qe2 {[%emt 0:00:27]} Nc5 {[%emt 0:01:56]} 14. h4 {[%emt 0:00:56]} Nb4 {[%emt 0:09:24]} 15. Nd4 {[%emt 0:04:25]} g6 {[%emt 0:10:03]} 16. Qc4 {[%emt 0:11:55]} d5 {[%emt 0:09:35]} 17. exd5 {[%emt 0:02:07]} O-O-O {[%emt 0:04:13]} 18. O-O {[%emt 0:03:30]} Nxd5 {[%emt 0:00:16]} 19. Nxd5 {[%emt 0:00:17]} Bxd5 {[%emt 0:04:16]} 20. Qe2 {[%emt 0:07:47]} Bb7 {[%emt 0:06:07]} 21. b4 {[%emt 0:02:22]} Ne4 {[%emt 0:07:16]} 22. b5 {[%emt 0:07:54]} Ng3 {[%emt 0:06:21]} 23. Bxb7+ {[%emt 0:00:11]} Qxb7 {[%emt 0:00:03]} 24. Qc4+ {[%emt 0:00:58]} Bc5 {[%emt 0:00:04]} 25. Rfd1 {[%emt 0:30:52]} Qe4 {[%emt 0:06:25]} 26. Rd3 {[%emt 0:12:39]} Ne2+ {[%emt 0:08:44]} 27. Kf1 {[%emt 0:01:53]} Nxd4 {[%emt 0:00:23]} 28. Rad1 {[%emt 0:03:36]} Qh1+ {[%emt 0:02:53]} 29. Bg1 {[%emt 0:00:00]} Nf5 {[%emt 0:00:38]} 30. Rxd8+ {[%emt 0:00:28]} Rxd8 {[%emt 0:00:08]} 31. Rxd8+ {[%emt 0:00:31]} Kxd8 {[%emt 0:00:07]} 32. Qd3+ {[%emt 0:00:26]} Kc8 {[%emt 0:00:18]} 33. Ke2 {[%emt 0:00:34]} Qg2+ {[%emt 0:00:13]} 0-1

[Event "1000GM Winter IM Norm-2 2024"]
[Site "Sunnyvale/"]
[Date "2024.01.07"]
[Round "9.1"]
[White "Zhou, Ruoyu"]
[Black "Ramirez, Carlos"]
[Result "1/2-1/2"]
[ECO "C01"]
[WhiteElo "2112"]
[BlackElo "2190"]
[Annotator "ChessBase"]
[PlyCount "42"]
[EventDate "2023.12.14"]
[EventType "schev"]
[EventCountry "USA"]
[SourceTitle "playchess.com"]
[Source "ChessBase"]
[SourceQuality "1"]
[TimeControl "5400+30"]

1. e4 {[%emt 0:00:03]} e6 {[%emt 0:03:54]} 2. d4 {[%emt 0:00:12]} d5 {[%emt 0:00:07]} 3. exd5 {[%emt 0:00:08]} exd5 {[%emt 0:00:02]} 4. Nf3 {[%emt 0:00:11]} Nc6 {[%emt 0:03:18]} 5. Bb5 {[%emt 0:00:35]} Bd6 {[%emt 0:01:21]} 6. c4 {[%emt 0:00:18]} dxc4 {[%emt 0:00:15]} 7. d5 {[%emt 0:00:12]} a6 {[%emt 0:01:18]} 8. Ba4 {[%emt 0:00:10]} b5 {[%emt 0:00:07]} 9. dxc6 {[%emt 0:00:14]} bxa4 {[%emt 0:00:01]} 10. O-O {[%emt 0:00:52]} Ne7 {[%emt 0:00:29]} 11. Nbd2 {[%emt 0:02:43]} c3 {[%emt 0:07:33]} 12. Ne4 {[%emt 0:01:49]} O-O {[%emt 0:01:11]} 13. Qxa4 {[%emt 0:01:17]} cxb2 {[%emt 0:00:54]} 14. Bxb2 {[%emt 0:00:14]} Rb8 {[%emt 0:01:48]} 15. Nxd6 {[%emt 0:00:24]} Rxb2 {[%emt 0:05:34]} 16. Nxc8 {[%emt 0:00:12]} Qxc8 {[%emt 0:00:02]} 17. h3 {[%emt 0:00:11]} Rb6 {[%emt 0:01:36]} 18. Rac1 {[%emt 0:24:17]} Qe6 {[%emt 0:01:13]} 19. Rfe1 {[%emt 0:01:14]} Qh6 {[%emt 0:23:47]} 20. Ne5 {[%emt 0:03:52]} Ra8 {[%emt 0:09:50]} 21. Qe4 {[%emt 0:24:56]} Qe6 {[%emt 0:01:48]} 1/2-1/2

[Event "1000GM Winter IM Norm-2 2024"]
[Site "Sunnyvale/"]
[Date "2024.01.07"]
[Round "9.2"]
[White "Arenas, David"]
[Black "Karthi, Jashith"]
[Result "1-0"]
[ECO "C50"]
[WhiteElo "2406"]
[BlackElo "2032"]
[Annotator "RC"]
[PlyCount "99"]
[EventDate "2023.12.14"]
[EventType "schev"]
[EventCountry "USA"]
[SourceTitle "playchess.com"]
[Source "ChessBase"]
[SourceQuality "1"]
[TimeControl "5400+30"]

1. e4 {[%emt 0:05:16]} e5 {[%emt 0:00:06]} 2. Nf3 {[%emt 0:00:07]} Nc6 {[%emt 0:00:04]} 3. Bc4 {[%emt 0:00:18]} Bc5 {[%emt 0:00:09]} 4. d3 {[%emt 0:01:04]} Nf6 {[%emt 0:00:07]} 5. a4 {[%emt 0:00:14]} a6 {[%emt 0:00:24]} 6. Nc3 {[%emt 0:02:50]} d6 {[%emt 0:00:59]} 7. h3 {[%emt 0:01:21]} h6 {[%emt 0:00:25]} 8. O-O {[%emt 0:00:08]} O-O {[%emt 0:00:13]} 9. Be3 {[%emt 0:00:14]} Nd4 {[%emt 0:01:34]} 10. Bxd4 {[%emt 0:01:40]} Bxd4 {[%emt 0:00:41]} 11. Nxd4 {[%emt 0:00:48]} exd4 {[%emt 0:00:07]} 12. Ne2 {[%emt 0:00:13]} c5 {[%emt 0:00:06]} 13. Nf4 {[%emt 0:03:22]} Re8 {[%emt 0:02:38]} 14. c3 {[%emt 0:01:56]} dxc3 {[%emt 0:01:19]} 15. bxc3 {[%emt 0:00:05]} Bd7 {[%emt 0:01:41]} 16. Qb3 {[%emt 0:01:37]} d5 {[%emt 0:06:04]} 17. Nxd5 {[%emt 0:00:27]} Rb8 {[%emt 0:03:32]} 18. Nf4 {[%emt 0:05:20]} Rf8 {[%emt 0:00:22]} 19. a5 {[%emt 0:00:41]} b5 {[%emt 0:00:53]} 20. axb6 {[%emt 0:00:35]} Rxb6 {[%emt 0:00:08]} 21. Qa2 {[%emt 0:04:17]} Qb8 {[%emt 0:02:38]} 22. Ng6 {[%emt 0:02:02]} Rb2 {[%emt 0:00:11]} 23. Qxa6 {[%emt 0:01:05]} Re8 {[%emt 0:01:39]} 24. e5 {[%emt 0:08:35]} Nh5 {[%emt 0:03:43]} 25. Qd6 {[%emt 0:00:08]} Qxd6 {[%emt 0:01:06]} 26. exd6 {[%emt 0:00:02]} Rb6 {[%emt 0:00:39]} 27. Ne7+ {[%emt 0:01:50]} Kf8 {[%emt 0:00:39]} 28. Ra7 {[%emt 0:00:07]} Nf6 {[%emt 0:04:43]} 29. Nd5 {[%emt 0:06:06]} Rxd6 {[%emt 0:00:24]} 30. Nxf6 {[%emt 0:00:02]} gxf6 {[%emt 0:00:10]} 31. Rb1 {[%emt 0:00:02]} Rd8 {[%emt 0:05:30]} 32. Rbb7 {[%emt 0:01:21]} f5 {[%emt 0:01:12]} 33. Rc7 {[%emt 0:03:38]} Be6 {[%emt 0:01:49]} 34. Bxe6 {[%emt 0:05:46]} fxe6 {[%emt 0:00:19]} 35. Rh7 {[%emt 0:00:02]} Kg8 {[%emt 0:00:24]} 36. Rag7+ {[%emt 0:00:03]} Kf8 {[%emt 0:00:37]} 37. Rc7 {[%emt 0:00:05]} Kg8 {[%emt 0:00:06]} 38. Rxh6 {[%emt 0:00:06]} Rxd3 {[%emt 0:00:15]} 39. Rg6+ {[%emt 0:00:38]} Kh8 {[%emt 0:00:27]} 40. Rxc5 {[%emt 0:02:07]} Re8 {[%emt 0:00:39]} 41. Rc6 {[%emt 0:04:03]} Rd1+ {[%emt 0:00:14]} 42. Kh2 {[%emt 0:00:01]} Re1 {[%emt 0:00:07]} 43. Rc4 {[%emt 0:00:08]} Re4 {[%emt 0:00:12]} 44. Rxe4 {[%emt 0:00:07]} fxe4 {[%emt 0:00:06]} 45. Rg4 {[%emt 0:00:20]} Rc8 {[%emt 0:00:19]} 46. Rxe4 {[%emt 0:00:06]} Rxc3 {[%emt 0:00:19]} 47. Rxe6 {[%emt 0:00:06]} Kg7 {[%emt 0:00:05]} 48. Ra6 {[%emt 0:00:13]} Kf7 {[%emt 0:00:43]} 49. f3 {[%emt 0:00:12]} Rd3 {[%emt 0:01:44]} 50. Kg3 {[%emt 0:43:56]} 1-0